fUST/lending_fUST_20240818
["ID","MTS","AMOUNT","RATE_DAILY","PERIOD"]
[335194619,1723971039273,-500.0,0.00017266,2]
[335194620,1723971039287,-500.0,0.00017266,2]
[335194621,1723971039301,-500.0,0.00017266,2]
[335194622,1723971039314,-502.75146287,0.00017266,2]
[335194623,1723971039327,-792.88,0.00017266,2]
[335194624,1723971039340,-500.0,0.00017266,2]
[335194625,1723971039353,-500.0,0.00017266,2]
[335194626,1723971039367,-500.0,0.00017266,2]
[335194627,1723971039380,-505.3599567,0.00017266,2]
[335194628,1723971039393,-500.0,0.00017266,2]
[335194629,1723971039406,-500.0,0.00017266,2]
[335194630,1723971039420,-500.0,0.00017266,2]
[335194631,1723971039433,-596.25,0.00017266,2]
[335194632,1723971039447,-500.0,0.00017266,2]
[335194633,1723971039461,-501.6854391,0.00017266,2]
[335194634,1723971039475,-500.0,0.00017266,2]
[335194635,1723971039484,-500.0,0.00017266,2]
[335194636,1723971039494,-500.0,0.00017266,2]
[335194637,1723971039503,-500.0,0.00017266,2]
[335194638,1723971039513,-500.0,0.00017266,2]
[335194639,1723971039523,-150.0,0.00017266,2]
[335194640,1723971039533,-500.0,0.00017266,2]
[335194641,1723971039543,-611.83015375,0.00017266,2]
[335194642,1723971039741,-500.0,0.00017266,2]
[335194643,1723971039765,-502.8264722,0.00017266,2]
[335194644,1723971039775,-500.0,0.00017266,2]
[335194645,1723971039785,-500.0,0.00017266,2]
[335194646,1723971039795,-200.0,0.00017266,2]
[335194647,1723971039804,-500.0,0.00017266,2]
[335194648,1723971039814,-500.0,0.00017266,2]
[335194649,1723971039823,-500.0,0.00017266,2]
[335194650,1723971039832,-500.0,0.00017266,2]
[335194651,1723971039842,-500.0,0.00017266,2]
[335194652,1723971039852,-500.0,0.00017266,2]
[335194653,1723971039861,-502.85908508,0.00017266,2]
[335194654,1723971039871,-500.0,0.00017266,2]
[335194655,1723971039881,-500.0,0.00017266,2]
[335194656,1723971039891,-500.0,0.00017266,2]
[335194657,1723971039901,-500.0,0.00017266,2]
[335194658,1723971039911,-500.0,0.00017266,2]
[335194659,1723971039922,-500.0,0.00017266,2]
[335194660,1723971039934,-500.0,0.00017266,2]
[335194661,1723971039944,-500.0,0.00017266,2]
[335194662,1723971039955,-506.77248503,0.00017266,2]
[335194663,1723971039965,-500.0,0.00017266,2]
[335194664,1723971039977,-506.40033661,0.00017266,2]
[335194665,1723971039989,-500.0,0.00017266,2]
[335194666,1723971040000,-500.0,0.00017266,2]
[335194667,1723971040011,-500.0,0.00017266,2]
[335194668,1723971040024,-500.0,0.00017266,2]
[335194669,1723971040034,-500.0,0.00017266,2]
[335194670,1723971040043,-500.0,0.00017266,2]
[335194672,1723971040052,-500.0,0.00017266,2]
[335194673,1723971040062,-510.97364611,0.00017266,2]
[335194675,1723971040072,-500.0,0.00017266,2]
[335194676,1723971040083,-391.39034035,0.00017266,2]
[335194677,1723971040095,-500.0,0.00017266,2]
[335194678,1723971040106,-501.12137864,0.00017266,2]
[335194679,1723971040117,-500.0,0.00017266,2]
[335194680,1723971040132,-500.0,0.00017266,2]
[335194681,1723971040144,-500.0,0.00017266,2]
[335194682,1723971040156,-500.0,0.00017266,2]
[335194683,1723971040167,-511.00267424,0.00017266,2]
[335194684,1723971040179,-500.0,0.00017266,2]
[335194685,1723971040189,-674.99,0.00017266,2]
[335194686,1723971040201,-500.0,0.00017266,2]
[335194687,1723971040211,-520.92,0.00017266,2]
[335194689,1723971040221,-517.93,0.00017266,2]
[335194691,1723971040232,-721.16,0.00017266,2]
[335194693,1723971040241,-500.0,0.00017266,2]
[335194695,1723971040251,-500.0,0.00017266,2]
[335194697,1723971040261,-500.0,0.00017266,2]
[335194699,1723971040271,-503.19594722,0.00017266,2]
[335194700,1723971040281,-895.16,0.00017266,2]
[335194702,1723971040291,-500.0,0.00017266,2]
[335194704,1723971040300,-500.0,0.00017266,2]
[335194705,1723971040310,-728.01,0.00017266,2]
[335194706,1723971040320,-500.0,0.00017266,2]
[335194707,1723971040329,-500.0,0.00017266,2]
[335194708,1723971040339,-500.0,0.00017266,2]
[335194709,1723971040348,-500.0,0.00017266,2]
[335194710,1723971040357,-500.0,0.00017266,2]
[335194711,1723971040367,-500.0,0.00017266,2]
[335194712,1723971040376,-500.0,0.00017266,2]
[335194714,1723971040386,-510.46232296,0.00017266,2]
[335194716,1723971040396,-500.0,0.00017266,2]
[335194718,1723971040406,-500.0,0.00017266,2]
[335194720,1723971040415,-500.0,0.00017266,2]
[335194722,1723971040426,-500.0,0.00017266,2]
[335194724,1723971040436,-505.04959204,0.00017266,2]
[335194726,1723971040445,-500.0,0.00017266,2]
[335194728,1723971040455,-500.0,0.00017266,2]
[335194730,1723971040464,-500.0,0.00017266,2]
[335194732,1723971040474,-553.6,0.00017266,2]
[335194734,1723971040483,-500.0,0.00017266,2]
[335194736,1723971040493,-500.0,0.00017266,2]
[335194738,1723971040503,-513.78946018,0.00017266,2]
[335194740,1723971040513,-503.18430645,0.00017266,2]
[335194742,1723971040523,-546.60348441,0.00017266,2]
[335194745,1723971040532,-500.0,0.00017266,2]
[335194746,1723971040542,-500.0,0.00017266,2]
[335194748,1723971040551,-500.0,0.00017266,2]
[335194750,1723971040561,-500.0,0.00017266,2]
[335194751,1723971040570,-500.0,0.00017266,2]
[335194752,1723971040580,-14472.65629352,0.00017439,2]
[335194753,1723971040589,-159.126613,0.0001745,2]
[335194754,1723971040599,-277.63683817,0.00017533,2]
[335194755,1723971040608,-656.38,0.00017539,2]
[335194756,1723971040618,-500.0,0.00017539,2]
[335194757,1723971040627,-500.0,0.00017539,2]
[335194758,1723971040637,-638.99,0.00017539,2]
[335194759,1723971040647,-7386.24,0.00017539,2]
[335194760,1723971040657,-500.0,0.00017539,2]
[335194761,1723971040667,-1263.86,0.00017539,2]
[335194762,1723971040676,-575.46,0.00017539,2]
[335194763,1723971040687,-502.76791393,0.00017539,2]
[335194764,1723971040697,-2750.48,0.00017539,2]
[335194765,1723971040708,-868.16,0.00017539,2]
[335194766,1723971040718,-825.12,0.00017539,2]
[335194767,1723971040728,-914.46,0.00017539,2]
[335194768,1723971040737,-2126.93,0.00017539,2]
[335194769,1723971040747,-500.0,0.00017539,2]
[335194770,1723971040757,-500.0,0.00017539,2]
[335194771,1723971040767,-934.44,0.00017539,2]
[335194772,1723971040776,-500.0,0.00017539,2]
[335194773,1723971040785,-242.80055857,0.00017539,2]
[335194774,1723971040795,-787.87,0.00017539,2]
[335194775,1723971040804,-818.84,0.00017539,2]
[335194776,1723971040814,-500.0,0.00017539,2]
[335194777,1723971040823,-500.0,0.00017539,2]
[335194778,1723971040833,-500.0,0.0001754,2]
[335194779,1723971040843,-500.0,0.0001754,2]
[335194780,1723971040852,-500.0,0.0001754,2]
[335194781,1723971040862,-500.0,0.0001754,2]
[335194782,1723971040871,-466.80532712,0.0001754,2]
[335194783,1723971040881,-500.0,0.0001754,2]
[335194784,1723971040890,-500.0,0.0001754,2]
[335194785,1723971040900,-500.0,0.0001754,2]
[335194786,1723971040909,-500.0,0.0001754,2]
[335194787,1723971040919,-500.0,0.0001754,2]
[335194788,1723971040928,-500.0,0.0001754,2]
[335194789,1723971040937,-500.0,0.0001754,2]
[335194790,1723971040947,-500.0,0.0001754,2]
[335194791,1723971040957,-501.93888408,0.0001754,2]
[335194792,1723971040967,-506.83744732,0.0001754,2]
[335194793,1723971040977,-792.88,0.0001754,2]
[335194794,1723971040988,-526.31895576,0.0001754,2]
[335194795,1723971041000,-500.0,0.0001754,2]
[335194796,1723971041011,-503.26337526,0.0001754,2]
[335194797,1723971041021,-509.52675706,0.0001754,2]
[335194798,1723971041030,-504.08150754,0.0001754,2]
[335194799,1723971041040,-500.0,0.0001754,2]
[335194800,1723971041051,-596.25,0.0001754,2]
[335194801,1723971041061,-503.93529281,0.0001754,2]
[335194802,1723971041071,-500.0,0.0001754,2]
[335194803,1723971041082,-500.0,0.0001754,2]
[335194804,1723971041093,-500.0,0.0001754,2]
[335194805,1723971041103,-500.0,0.0001754,2]
[335194806,1723971041114,-500.0,0.0001754,2]
[335194807,1723971041127,-150.0,0.0001754,2]
[335194808,1723971041139,-500.0,0.0001754,2]
[335194809,1723971041150,-500.0,0.0001754,2]
[335194810,1723971041161,-500.0,0.0001754,2]
[335194811,1723971041174,-500.0,0.0001754,2]
[335194812,1723971041185,-200.0,0.0001754,2]
[335194813,1723971041195,-500.0,0.0001754,2]
[335194814,1723971041207,-500.0,0.0001754,2]
[335194815,1723971041216,-500.0,0.0001754,2]
[335194816,1723971041226,-507.97641047,0.0001754,2]
[335194817,1723971041235,-511.4219011,0.0001754,2]
[335194818,1723971041245,-500.0,0.0001754,2]
[335194819,1723971041256,-500.0,0.0001754,2]
[335194820,1723971041266,-505.39570804,0.0001754,2]
[335194821,1723971041276,-510.71652448,0.0001754,2]
[335194822,1723971041287,-511.00844892,0.0001754,2]
[335194823,1723971041298,-515.67634002,0.0001754,2]
[335194824,1723971041307,-500.0,0.0001754,2]
[335194825,1723971041317,-500.0,0.0001754,2]
[335194826,1723971041330,-461.50916637,0.0001754,2]
[335194827,1723971041341,-494.2044068,0.0001754,2]
[335194828,1723971041352,-507.94942842,0.0001754,2]
[335194829,1723971041363,-508.35649694,0.0001754,2]
[335194830,1723971041374,-500.0,0.0001754,2]
[335194831,1723971041384,-500.0,0.0001754,2]
[335194832,1723971041395,-500.0,0.0001754,2]
[335194833,1723971041407,-500.0,0.0001754,2]
[335194834,1723971041418,-512.08654274,0.0001754,2]
[335194835,1723971041428,-500.8022216,0.0001754,2]
[335194836,1723971041438,-500.0,0.0001754,2]
[335194837,1723971041447,-517.7936347,0.0001754,2]
[335194838,1723971041457,-503.5090464,0.0001754,2]
[335194839,1723971041466,-674.99,0.0001754,2]
[335194840,1723971041476,-520.92,0.0001754,2]
[335194841,1723971041486,-500.0,0.0001754,2]
[335194842,1723971041498,-517.93,0.0001754,2]
[335194843,1723971041510,-721.16,0.0001754,2]
[335194844,1723971041520,-500.0,0.0001754,2]
[335194845,1723971041529,-515.55398603,0.0001754,2]
[335194846,1723971041538,-895.16,0.0001754,2]
[335194847,1723971041548,-502.20372437,0.0001754,2]
[335194848,1723971041559,-500.0,0.0001754,2]
[335194849,1723971041570,-728.01,0.0001754,2]
[335194850,1723971041581,-500.0,0.0001754,2]
[335194851,1723971041592,-287.4643648,0.0001754,2]
[335194852,1723971041602,-500.0,0.0001754,2]
[335194853,1723971041612,-314.10509722,0.0001754,2]
[335194854,1723971041622,-500.0,0.0001754,2]
[335194855,1723971041634,-500.0,0.0001754,2]
[335194856,1723971041645,-500.0,0.0001754,2]
[335194857,1723971041656,-500.0,0.0001754,2]
[335194858,1723971041668,-511.45949116,0.0001754,2]
[335194859,1723971041677,-500.0,0.0001754,2]
[335194860,1723971041687,-500.0,0.0001754,2]
[335194861,1723971041698,-500.0,0.0001754,2]
[335194862,1723971041710,-426.90354338,0.0001754,2]
[335194863,1723971041721,-553.6,0.0001754,2]
[335194864,1723971041732,-500.0,0.0001754,2]
[335194865,1723971041742,-513.22647486,0.0001754,2]
[335194866,1723971041753,-500.0,0.0001754,2]
[335194867,1723971041765,-500.0,0.0001754,2]
[335194868,1723971041774,-495.78922425,0.0001754,2]
[335194869,1723971041783,-272.23026144,0.0001754,2]
[335194870,1723971041793,-500.0,0.0001754,2]
[335194871,1723971041803,-45824.8736733,0.00017587,2]
[335194872,1723971041814,-45824.8736733,0.00017588,2]
[335194873,1723971041823,-500.0,0.00017598,2]
[335194874,1723971041834,-1282.59,0.00017598,2]
[335194875,1723971041843,-1505.22,0.00017598,2]
[335194876,1723971041853,-500.0,0.00017598,2]
[335194877,1723971041862,-500.0,0.00017598,2]
[335194878,1723971041872,-1342.19,0.00017598,2]
[335194879,1723971041881,-500.0,0.00017598,2]
[335194880,1723971041890,-5154.28,0.00017598,2]
[335194881,1723971041900,-1253.09,0.00017598,2]
[335194882,1723971041910,-1462.81,0.00017598,2]
[335194883,1723971041919,-826.7,0.00017598,2]
[335194884,1723971041928,-1209.61,0.00017598,2]
[335194885,1723971041938,-500.0,0.00017598,2]
[335194886,1723971041947,-607.02,0.00017598,2]
[335194887,1723971041957,-500.0,0.00017598,2]
[335194888,1723971041966,-1986.35,0.00017598,2]
[335194889,1723971041975,-500.0,0.00017598,2]
[335194890,1723971041985,-500.0,0.00017598,2]
[335194891,1723971041994,-500.0,0.00017598,2]
[335194892,1723971042004,-500.0,0.00017598,2]
[335194893,1723971042014,-500.0,0.00017598,2]
[335194894,1723971042024,-1466.62,0.00017598,2]
[335194895,1723971042033,-500.0,0.00017598,2]
[335194896,1723971042043,-166.30995301,0.00017598,2]
[335194897,1723971042053,-500.0,0.00017598,2]
[335194898,1723971042062,-500.0,0.00017598,2]
[335194899,1723971042072,-500.0,0.00017598,2]
[335194900,1723971042082,-599.06,0.00017598,2]
[335194901,1723971042092,-500.0,0.00017598,2]
[335194902,1723971042101,-609.1,0.00017598,2]
[335194903,1723971042111,-1161.08,0.00017598,2]
[335194904,1723971042121,-1062.86,0.00017598,2]
[335194905,1723971042134,-703.24,0.00017598,2]
[335194906,1723971042144,-500.0,0.00017598,2]
[335194907,1723971042154,-500.0,0.00017598,2]
[335194908,1723971042163,-500.0,0.00017598,2]
[335194909,1723971042175,-989.63,0.00017598,2]
[335194910,1723971042184,-778.86,0.00017598,2]
[335194911,1723971042194,-500.0,0.00017598,2]
[335194912,1723971042205,-500.0,0.00017598,2]
[335194913,1723971042315,-505.01,0.00017598,2]
[335194914,1723971042331,-500.0,0.00017598,2]
[335194915,1723971042340,-819.08,0.00017598,2]
[335194916,1723971042350,-500.0,0.00017598,2]
[335194917,1723971042360,-500.0,0.00017598,2]
[335194918,1723971042369,-15649.67,0.00017598,2]
[335194919,1723971042378,-500.0,0.00017598,2]
[335194920,1723971042388,-1495.25,0.00017598,2]
[335194921,1723971042397,-308.1266,0.00017753,2]
[335194922,1723971042407,-415.0567958,0.00017753,2]
[335194923,1723971042416,-211.8831283,0.00017753,2]
[335194924,1723971042426,-306.0,0.00017778,2]
[335194925,1723971042435,-153.9882082,0.00017778,2]
[335194926,1723971042445,-500.0,0.00017813,2]
[335194927,1723971042454,-500.0,0.00017813,2]
[335194928,1723971042463,-500.0,0.00017813,2]
[335194929,1723971042473,-500.0,0.00017813,2]
[335194930,1723971042482,-500.0,0.00017813,2]
[335194931,1723971042492,-500.0,0.00017813,2]
[335194932,1723971042502,-500.0,0.00017813,2]
[335194933,1723971042512,-500.0,0.00017813,2]
[335194934,1723971042522,-500.0,0.00017813,2]
[335194935,1723971042532,-500.0,0.00017813,2]
[335194936,1723971042542,-792.88,0.00017813,2]
[335194937,1723971042552,-500.0,0.00017813,2]
[335194938,1723971042562,-500.0,0.00017813,2]
[335194939,1723971042571,-596.25,0.00017813,2]
[335194940,1723971042581,-510.46813186,0.00017813,2]
[335194941,1723971042590,-500.0,0.00017813,2]
[335194942,1723971042600,-507.50154285,0.00017813,2]
[335194943,1723971042610,-500.0,0.00017813,2]
[335194944,1723971042619,-500.0,0.00017813,2]
[335194945,1723971042629,-187.79935218,0.00017813,2]
[335194946,1723971042638,-500.0,0.00017813,2]
[335194947,1723971042647,-474.35425249,0.00017813,2]
[335194948,1723971042657,-522.37444784,0.00017813,2]
[335194949,1723971042666,-500.0,0.00017813,2]
[335194950,1723971042676,-200.0,0.00017813,2]
[335194951,1723971042686,-500.0,0.00017813,2]
[335194952,1723971042696,-500.0,0.00017813,2]
[335194953,1723971042705,-500.0,0.00017813,2]
[335194954,1723971042715,-500.0,0.00017813,2]
[335194955,1723971042725,-512.40516125,0.00017813,2]
[335194956,1723971042735,-500.0,0.00017813,2]
[335194957,1723971042745,-500.0,0.00017813,2]
[335194958,1723971042755,-500.0,0.00017813,2]
[335194959,1723971042764,-500.0,0.00017813,2]
[335194960,1723971042775,-500.0,0.00017813,2]
[335194961,1723971042785,-656.38,0.00017813,2]
[335194963,1723971042794,-500.0,0.00017813,2]
[335194965,1723971042805,-500.0,0.00017813,2]
[335194967,1723971042815,-500.0,0.00017813,2]
[335194969,1723971042825,-500.0,0.00017813,2]
[335194972,1723971042836,-638.99,0.00017813,2]
[335194975,1723971042845,-7386.24,0.00017813,2]
[335194978,1723971042855,-674.99,0.00017813,2]
[335194981,1723971042865,-520.92,0.00017813,2]
[335194983,1723971042874,-500.0,0.00017813,2]
[335194985,1723971042884,-517.93,0.00017813,2]
[335194987,1723971042894,-500.0,0.00017813,2]
[335194990,1723971042904,-721.16,0.00017813,2]
[335194993,1723971042913,-500.0,0.00017813,2]
[335194995,1723971042924,-895.16,0.00017813,2]
[335194998,1723971042934,-1263.86,0.00017813,2]
[335195000,1723971042944,-500.0,0.00017813,2]
[335195002,1723971042953,-728.01,0.00017813,2]
[335195004,1723971042963,-575.46,0.00017813,2]
[335195006,1723971042973,-500.0,0.00017813,2]
[335195007,1723971042983,-2750.48,0.00017813,2]
[335195008,1723971042993,-500.0,0.00017813,2]
[335195009,1723971043002,-500.0,0.00017813,2]
[335195010,1723971043012,-500.0,0.00017813,2]
[335195011,1723971043023,-868.16,0.00017813,2]
[335195012,1723971043032,-825.12,0.00017813,2]
[335195013,1723971043042,-500.0,0.00017813,2]
[335195014,1723971043052,-500.0,0.00017813,2]
[335195016,1723971043061,-635.5952939,0.00017813,2]
[335195018,1723971043072,-500.0,0.00017813,2]
[335195020,1723971043081,-500.0,0.00017813,2]
[335195022,1723971043091,-914.46,0.00017813,2]
[335195024,1723971043101,-553.6,0.00017813,2]
[335195026,1723971043111,-2126.93,0.00017813,2]
[335195028,1723971043121,-500.0,0.00017813,2]
[335195030,1723971043135,-500.0,0.00017813,2]
[335195032,1723971043145,-500.0,0.00017813,2]
[335195034,1723971043155,-934.44,0.00017813,2]
[335195036,1723971043164,-500.0,0.00017813,2]
[335195038,1723971043174,-500.0,0.00017813,2]
[335195040,1723971043184,-787.87,0.00017813,2]
[335195042,1723971043193,-500.0,0.00017813,2]
[335195044,1723971043204,-500.0,0.00017813,2]
[335195046,1723971043214,-818.84,0.00017813,2]
[335195048,1723971043223,-500.0,0.00017813,2]
[335195050,1723971043232,-538.46934592,0.00017813,2]
[335195052,1723971043242,-45824.8736733,0.00017862,2]
[335195054,1723971043252,-500.0,0.00017872,2]
[335195056,1723971043261,-1282.59,0.00017872,2]
[335195058,1723971043278,-1505.22,0.00017872,2]
[335195060,1723971043287,-500.0,0.00017872,2]
[335195061,1723971043297,-500.0,0.00017872,2]
[335195063,1723971043306,-1342.19,0.00017872,2]
[335195064,1723971043315,-5154.28,0.00017872,2]
[335195066,1723971043325,-1253.09,0.00017872,2]
[335195068,1723971043334,-1462.81,0.00017872,2]
[335195069,1723971043344,-826.7,0.00017872,2]
[335195070,1723971043354,-1209.61,0.00017872,2]
[335195071,1723971043363,-500.0,0.00017872,2]
[335195072,1723971043372,-607.02,0.00017872,2]
[335195073,1723971043381,-500.0,0.00017872,2]
[335195074,1723971043391,-1986.35,0.00017872,2]
[335195075,1723971043402,-500.0,0.00017872,2]
[335195076,1723971043414,-500.0,0.00017872,2]
[335195077,1723971043425,-500.0,0.00017872,2]
[335195078,1723971043435,-500.0,0.00017872,2]
[335195079,1723971043444,-1466.62,0.00017872,2]
[335195080,1723971043455,-500.0,0.00017872,2]
[335195081,1723971043465,-500.0,0.00017872,2]
[335195082,1723971043479,-500.0,0.00017872,2]
[335195083,1723971043490,-500.0,0.00017872,2]
[335195084,1723971043501,-599.06,0.00017872,2]
[335195085,1723971043512,-500.0,0.00017872,2]
[335195086,1723971043523,-1161.08,0.00017872,2]
[335195087,1723971043533,-609.1,0.00017872,2]
[335195088,1723971043542,-1062.86,0.00017872,2]
[335195089,1723971043552,-703.24,0.00017872,2]
[335195090,1723971043563,-500.0,0.00017872,2]
[335195091,1723971043574,-500.0,0.00017872,2]
[335195092,1723971043585,-500.0,0.00017872,2]
[335195093,1723971043595,-989.63,0.00017872,2]
[335195094,1723971043606,-778.86,0.00017872,2]
[335195095,1723971043616,-500.0,0.00017872,2]
[335195096,1723971043627,-500.0,0.00017872,2]
[335195097,1723971043639,-505.01,0.00017872,2]
[335195098,1723971043650,-500.0,0.00017872,2]
[335195099,1723971043661,-819.08,0.00017872,2]
[335195100,1723971043670,-500.0,0.00017872,2]
[335195101,1723971043680,-500.0,0.00017872,2]
[335195102,1723971043691,-527.1813794,0.00017872,2]
[335195103,1723971043702,-1495.25,0.00017872,2]
[335195104,1723971043712,-15649.67,0.00017897,2]
[335195105,1723971043722,-10341.66689399,0.00017898,2]
[335195106,1723971043732,-1000.0,0.00018,18]
[335195107,1723971043741,-45824.8736733,0.00018032,2]
[335195108,1723971043751,-45824.8736733,0.00018046,2]
[335195109,1723971043761,-990.02924789,0.00018049,2]
[335195110,1723971043773,-15649.67,0.0001805,2]
[335195111,1723971043783,-15649.67,0.00018059,2]
[335195112,1723971043794,-500.0,0.00018087,2]
[335195113,1723971043804,-536.03048308,0.00018087,2]
[335195114,1723971043814,-500.0,0.00018087,2]
[335195115,1723971043826,-500.0,0.00018087,2]
[335195116,1723971043836,-500.0,0.00018087,2]
[335195117,1723971043847,-610.10930005,0.00018087,2]
[335195118,1723971043857,-500.0,0.00018087,2]
[335195119,1723971043866,-500.0,0.00018087,2]
[335195120,1723971043876,-500.0,0.00018087,2]
[335195121,1723971043885,-500.0,0.00018087,2]
[335195122,1723971043894,-792.88,0.00018087,2]
[335195123,1723971043903,-500.0,0.00018087,2]
[335195124,1723971043912,-500.0,0.00018087,2]
[335195125,1723971043922,-596.25,0.00018087,2]
[335195126,1723971043931,-383.34210581,0.00018087,2]
[335195127,1723971043940,-410.26667269,0.00018087,2]
[335195128,1723971043950,-500.0,0.00018087,2]
[335195129,1723971043960,-514.81389458,0.00018087,2]
[335195130,1723971043969,-500.0,0.00018087,2]
[335195131,1723971043978,-200.0,0.00018087,2]
[335195132,1723971043988,-516.1702096,0.00018087,2]
[335195133,1723971043997,-500.0,0.00018087,2]
[335195134,1723971044007,-500.0,0.00018087,2]
[335195135,1723971044016,-500.0,0.00018087,2]
[335195136,1723971044026,-500.0,0.00018087,2]
[335195137,1723971044036,-572.16363907,0.00018087,2]
[335195138,1723971044046,-500.0,0.00018087,2]
[335195139,1723971044056,-414.96297049,0.00018087,2]
[335195140,1723971044066,-500.0,0.00018087,2]
[335195141,1723971044076,-656.38,0.00018087,2]
[335195142,1723971044087,-500.0,0.00018087,2]
[335195143,1723971044097,-500.0,0.00018087,2]
[335195144,1723971044107,-500.0,0.00018087,2]
[335195145,1723971044118,-500.0,0.00018087,2]
[335195146,1723971044133,-638.99,0.00018087,2]
[335195147,1723971044143,-7386.24,0.00018087,2]
[335195148,1723971044156,-674.99,0.00018087,2]
[335195149,1723971044166,-520.92,0.00018087,2]
[335195150,1723971044175,-500.0,0.00018087,2]
[335195151,1723971044186,-517.93,0.00018087,2]
[335195152,1723971044196,-500.0,0.00018087,2]
[335195153,1723971044206,-721.16,0.00018087,2]
[335195154,1723971044217,-500.0,0.00018087,2]
[335195155,1723971044227,-895.16,0.00018087,2]
[335195156,1723971044237,-1263.86,0.00018087,2]
[335195157,1723971044246,-500.0,0.00018087,2]
[335195158,1723971044255,-728.01,0.00018087,2]
[335195159,1723971044265,-575.46,0.00018087,2]
[335195160,1723971044275,-500.0,0.00018087,2]
[335195161,1723971044284,-2750.48,0.00018087,2]
[335195162,1723971044293,-506.11519574,0.00018087,2]
[335195163,1723971044303,-500.0,0.00018087,2]
[335195164,1723971044312,-500.0,0.00018087,2]
[335195165,1723971044322,-868.16,0.00018087,2]
[335195166,1723971044331,-825.12,0.00018087,2]
[335195167,1723971044340,-500.0,0.00018087,2]
[335195168,1723971044349,-500.0,0.00018087,2]
[335195169,1723971044358,-500.0,0.00018087,2]
[335195170,1723971044367,-500.0,0.00018087,2]
[335195171,1723971044376,-914.46,0.00018087,2]
[335195172,1723971044386,-553.6,0.00018087,2]
[335195173,1723971044395,-2126.93,0.00018087,2]
[335195174,1723971044403,-500.0,0.00018087,2]
[335195175,1723971044412,-500.0,0.00018087,2]
[335195176,1723971044422,-500.0,0.00018087,2]
[335195177,1723971044431,-934.44,0.00018087,2]
[335195178,1723971044440,-500.0,0.00018087,2]
[335195179,1723971044449,-505.25967494,0.00018087,2]
[335195180,1723971044458,-787.87,0.00018087,2]
[335195181,1723971044468,-500.0,0.00018087,2]
[335195182,1723971044477,-500.0,0.00018087,2]
[335195183,1723971044486,-818.84,0.00018087,2]
[335195184,1723971044495,-500.0,0.00018087,2]
[335195185,1723971044504,-155.02748706,0.00018135,2]
[335195186,1723971044513,-782.12449386,0.00018135,2]
[335195187,1723971044525,-45824.8736733,0.00018136,2]
[335195188,1723971044535,-45824.8736733,0.00018138,2]
[335195189,1723971044546,-15649.67,0.00018138,2]
[335195190,1723971044557,-15649.67,0.00018138,2]
[335195191,1723971044567,-15649.67,0.00018141,2]
[335195192,1723971044579,-15649.67,0.00018145,2]
[335195193,1723971044590,-500.0,0.00018146,2]
[335195194,1723971044600,-1282.59,0.00018146,2]
[335195195,1723971044610,-1505.22,0.00018146,2]
[335195196,1723971044621,-500.0,0.00018146,2]
[335195197,1723971044631,-500.0,0.00018146,2]
[335195198,1723971044641,-1342.19,0.00018146,2]
[335195199,1723971044651,-5154.28,0.00018146,2]